bitfinex-derivatives/quotes_BNBF0:USTF0_20230901
["timestamp","ask_amount","ask_price","bid_price","bid_amount"]
[1693597581922,0.17273414,213.09,212.71,0.86376722]
[1693597582123,0.17273414,213.08,212.71,0.86376722]
[1693597582321,0.17273414,213.13,212.71,0.86376722]
[1693597582523,0.17273414,213.12,212.71,0.86376722]
[1693597582718,0.17273414,213.13,212.71,0.86376722]
[1693597582923,0.17273414,213.12,212.71,0.86376722]
[1693597583118,0.17273414,213.11,212.71,0.86376722]
[1693597583317,0.17273414,213.13,212.71,0.86376722]
[1693597583522,0.17273414,213.12,212.71,0.86376722]
[1693597583722,0.17273414,213.11,212.71,0.86376722]
[1693597583920,0.17273414,213.13,212.71,0.86376722]
[1693597584118,0.17273414,213.12,212.71,0.86376722]
[1693597584324,0.17273414,213.13,212.71,0.86376722]
[1693597584624,0.17273414,213.12,212.71,0.86376722]
[1693597584825,0.17273414,213.13,212.71,0.86376722]
[1693597585025,0.17273414,213.12,212.71,0.86376722]
[1693597585227,0.17273414,213.13,212.71,0.86376722]
[1693597585525,0.17273414,213.12,212.7,0.07694937]
[1693597585726,0.17273414,213.13,212.7,0.07694937]
[1693597585926,0.17273414,213.12,212.7,0.07694937]
[1693597586127,0.17273414,213.13,212.7,0.07694937]
[1693597586328,0.17273414,213.12,212.7,0.07694937]
[1693597586530,0.17273414,213.11,212.7,0.07694937]
[1693597586730,0.17273414,213.1,212.7,0.07694937]
[1693597586922,0.17273414,213.09,212.7,0.07694937]
[1693597587128,0.17273414,213.13,212.7,0.07694937]
[1693597587324,0.17273414,213.12,212.7,0.07694937]
[1693597587526,0.17273414,213.13,212.7,0.07694937]
[1693597587728,0.17273414,213.12,212.7,0.07694937]
[1693597587928,0.17273414,213.13,212.7,0.07694937]
[1693597588229,0.17273414,213.12,212.7,0.07694937]
[1693597588429,0.17273414,213.13,212.7,0.07694937]
[1693597588631,0.17273414,213.12,212.7,0.07694937]
[1693597588825,0.17273414,213.11,212.7,0.07694937]
[1693597589032,0.17273414,213.1,212.7,0.07694937]
[1693597589230,0.17273414,213.09,212.7,0.07694937]
[1693597589430,0.17273414,213.08,212.7,0.07694937]
[1693597589631,0.17273414,213.07,212.7,0.07694937]
[1693597589829,0.17273414,213.06,212.7,0.07694937]
[1693597590032,0.17273414,213.05,212.7,0.07694937]
[1693597590232,0.17273414,213.04,212.7,0.07694937]
[1693597590429,0.17273414,213.03,212.7,0.07694937]
[1693597590634,0.17273414,213.02,212.7,0.07694937]
[1693597590930,0.17273414,213.01,212.7,0.07694937]
[1693597591134,0.17273414,213.12,212.7,0.07694937]
[1693597591434,0.17275981,213.11,212.7,0.07694937]
[1693597591631,0.17275981,213.12,212.71,0.86377691]
[1693597591830,0.17275981,213.11,212.71,0.94072628]
[1693597592028,0.17275981,213.12,212.71,0.07694937]
[1693597592236,0.17275981,213.11,212.71,0.07694937]
[1693597592429,0.17275981,213.12,212.71,0.07694937]
[1693597592632,0.17275981,213.11,212.71,0.07694937]
[1693597592828,0.17275981,213.12,212.71,0.07694937]
[1693597594535,5.30033525,213.12,212.71,0.07694937]
[1693597594727,0.17275981,213.11,212.72,0.07694937]
[1693597599337,5.30033525,213.11,212.72,0.07694937]
[1693597599537,0.17275981,213.1,212.72,0.07694937]
[1693597599937,0.17275981,213.1,212.71,0.07694937]
[1693597601135,5.30033525,213.1,212.71,0.07694937]
[1693597601336,0.17275981,213.09,212.71,0.07694937]
[1693597602935,0.17275981,213.09,212.7,0.07694937]
[1693597604534,0.17275981,213.09,212.66,0.07694937]
[1693597604736,0.17275981,213.09,212.65,0.07694937]
[1693597605141,5.12757544,213.07,212.63,0.07694937]
[1693597605437,0.17275981,213.06,212.64,0.86409154]
[1693597606533,0.17275981,213.07,212.63,0.86409154]
[1693597606738,0.17275981,213.06,212.64,0.86408963]
[1693597606940,5.12757544,213.08,212.63,0.86408963]
[1693597606941,0.17275981,213.07,212.63,0.86408963]
[1693597607135,0.17275981,213.06,212.64,0.86408989]
[1693597607338,0.17275981,213.07,212.63,0.86408989]
[1693597607536,0.17275981,213.06,212.64,0.86408931]
[1693597607739,0.17275981,213.08,212.62,0.86408931]
[1693597607939,0.17275981,213.07,212.63,0.86409026]
[1693597608140,0.17275981,213.08,212.62,0.86409026]
[1693597608344,0.17275981,213.07,212.63,0.86409026]
[1693597608536,0.17275981,213.09,212.61,0.86409026]
[1693597608737,0.17275981,213.08,212.62,0.86409026]
[1693597608940,0.17275981,213.07,212.63,0.86409026]
[1693597609141,0.17275981,213.06,212.64,0.86409026]
[1693597609344,0.17275981,213.1,212.61,0.86409026]
[1693597609544,0.17275981,213.09,212.62,0.86408727]
[1693597609744,0.17275981,213.08,212.63,0.86408727]
[1693597609944,5.12757544,213.11,212.61,0.86408727]
[1693597609945,0.17275981,213.1,212.61,0.86408727]
[1693597610146,0.17275981,213.09,212.62,0.86408727]
[1693597610347,0.17275981,213.08,212.63,0.86408727]
[1693597610541,0.17275981,213.1,212.61,0.86408727]
[1693597610745,0.17275981,213.09,212.62,0.86408727]
[1693597610941,0.17275981,213.1,212.61,0.86408727]
[1693597611245,0.17275981,213.09,212.62,0.86408727]
[1693597611439,0.17275981,213.08,212.63,0.86408727]
[1693597611746,0.17275981,213.07,212.64,0.86408727]
[1693597611947,0.17275981,213.06,212.6,0.07694937]
[1693597612246,0.17275981,213.05,212.61,0.86408198]
[1693597612441,0.17275981,213.11,212.61,0.86408198]
[1693597612747,0.17275981,213.1,212.61,0.86408198]
[1693597612941,0.17275981,213.09,212.61,0.86408198]
[1693597613147,0.17275981,213.08,212.61,0.86408198]
[1693597613445,0.17275981,213.07,212.61,0.86408198]
[1693597613643,0.17275981,213.12,212.61,0.86408198]
[1693597613947,0.17275981,213.11,212.62,0.86408198]
[1693597614145,0.17275981,213.12,212.6,0.86408198]
[1693597614446,0.17275981,213.11,212.61,0.86408198]
[1693597614746,0.17275981,213.1,212.62,0.86408198]
[1693597614947,0.17275981,213.09,212.6,0.86408198]
[1693597615148,0.17275981,213.08,212.61,0.86408198]
[1693597615347,0.17275981,213.07,212.62,0.86408198]
[1693597615548,0.17275981,213.06,212.63,0.86408198]
[1693597615748,0.17275981,213.05,212.64,0.86408198]
[1693597615949,0.17275981,213.12,212.6,0.86408198]
[1693597616248,0.17275981,213.11,212.61,0.86407828]
[1693597616548,0.17275981,213.1,212.62,0.86407828]
[1693597616848,0.17275981,213.09,212.63,0.86407828]
[1693597617049,0.17275981,213.13,212.6,0.86407828]
[1693597617253,0.17275981,213.12,212.61,0.86407828]
[1693597617458,0.17275981,213.13,212.6,0.86407828]
[1693597617643,0.17275981,213.12,212.61,0.86407828]
[1693597617842,0.17275981,213.13,212.6,0.86407828]
[1693597618047,0.17275981,213.12,212.61,0.86407828]
[1693597618249,0.17275981,213.13,212.6,0.86407828]
[1693597618445,0.17275981,213.12,212.61,0.86407828]
[1693597618650,0.17275981,213.13,212.6,0.86407828]
[1693597618946,0.17275981,213.12,212.61,0.86407828]
[1693597619150,0.17275981,213.11,212.62,0.86407828]
[1693597619349,0.17275981,213.1,212.63,0.86407828]
[1693597619550,0.17275981,213.13,212.6,0.86407828]
[1693597619747,0.17275981,213.12,212.61,0.86407828]
[1693597619950,0.17275981,213.13,212.6,0.86407828]
[1693597620251,0.17275981,213.12,212.61,0.86407828]
[1693597620451,0.17275981,213.12,212.59,0.07694937]
[1693597620452,0.17275981,213.11,212.62,0.86407828]
[1693597620753,0.17275981,213.1,212.63,0.86407828]
[1693597621055,0.17275981,213.09,212.64,0.86407828]
[1693597621248,0.17275981,213.13,212.6,0.86407828]
[1693597621448,0.17275981,213.12,212.61,0.86407923]
[1693597621646,0.17275981,213.11,212.62,0.86407923]
[1693597621849,0.17275981,213.1,212.63,0.86407923]
[1693597622050,0.17275981,213.13,212.6,0.86407923]
[1693597622250,0.17275981,213.12,212.61,0.86407923]
[1693597622453,0.17275981,213.13,212.6,0.86407923]
[1693597622648,0.17275981,213.12,212.61,0.86407923]
[1693597622852,0.17275981,213.11,212.62,0.86407923]
[1693597623051,0.17275981,213.1,212.6,0.86407923]
[1693597623253,0.17275981,213.1,212.59,0.07694937]
[1693597623254,0.17275981,213.09,212.61,0.86407923]
[1693597623552,0.17275981,213.08,212.62,0.86407923]
[1693597623746,0.17275981,213.07,212.63,0.86407923]
[1693597624051,0.17275981,213.06,212.64,0.86407923]
[1693597624354,0.17275981,213.06,212.37,1.02632477]
[1693597624548,0.17275981,213.04,212.13,4.6346759]
[1693597624745,7.15769219,213.17,212.53,0.15357566]
[1693597624949,7.15769219,213.17,212.59,0.07678783]
[1693597624950,5.11263728,213.14,212.59,0.07678783]
[1693597625152,0.17275981,213.13,212.6,0.86408528]
[1693597625648,0.17275981,213.13,212.6,0.94087311]
[1693597625854,0.17275981,213.13,212.61,0.86408528]
[1693597626174,0.17275981,213.12,212.61,0.86408528]
[1693597626352,0.17275981,213.14,212.61,0.86408528]
[1693597626554,0.17275981,213.13,212.61,0.86408528]
[1693597626852,0.17275981,213.12,212.61,0.94087311]
[1693597627054,0.17275981,213.11,212.62,0.86408528]
[1693597627353,0.17275981,213.1,212.62,0.86408528]
[1693597627553,0.17275981,213.09,212.62,0.86408528]
[1693597627746,0.17275981,213.13,212.62,0.86408528]
[1693597627946,0.17275981,213.12,212.62,0.86408528]
[1693597628150,0.17275981,213.11,212.62,0.86408528]
[1693597628350,0.17275981,213.13,212.62,0.86408528]
[1693597628552,0.17275981,213.12,212.62,0.86408528]
[1693597628746,0.17275981,213.11,212.62,0.86408528]
[1693597628952,0.17275981,213.13,212.62,0.86408528]
[1693597629250,0.17275981,213.12,212.62,0.86408528]
[1693597629448,0.17275981,213.11,212.62,0.86408528]
[1693597629650,0.17275981,213.13,212.62,0.86408528]
[1693597629850,5.11263728,213.14,212.62,0.86408528]
[1693597629851,0.17275981,213.12,212.62,0.86408528]
[1693597630053,0.17275981,213.11,212.62,0.86408528]
[1693597630253,0.17275981,213.1,212.62,0.94087311]
[1693597630454,0.17275981,213.13,212.63,0.86408528]
[1693597630652,0.17275981,213.12,212.63,0.86408528]
[1693597630851,0.17275981,213.11,212.63,0.86408528]
[1693597631054,0.17275981,213.12,212.63,0.86408528]
[1693597631253,0.17275981,213.11,212.63,0.86408528]
[1693597631454,0.17275981,213.1,212.63,0.86408528]
[1693597631653,0.17275981,213.12,212.63,0.86408528]
[1693597631854,0.17275981,213.11,212.63,0.86408528]
[1693597632052,0.17275981,213.1,212.63,0.86408528]
[1693597632252,0.17275981,213.09,212.63,0.94087311]
[1693597632553,0.17275981,213.08,212.64,0.86408528]
[1693597632754,0.17275981,213.07,212.64,0.86408528]
[1693597632953,0.17275981,213.06,212.64,0.86408528]
[1693597633255,0.17275981,213.05,212.64,0.86408528]
[1693597633453,0.17275981,213.04,212.64,0.86408528]
[1693597633653,0.17275981,213.03,212.64,0.86408528]
[1693597633847,0.17275981,213.11,212.64,0.86408528]
[1693597634053,0.17275981,213.1,212.64,0.94087311]
[1693597634251,0.17275981,213.09,212.65,0.86408528]
[1693597634448,5.11263728,213.12,212.65,0.86408528]
[1693597634449,0.17275981,213.11,212.65,0.86408528]
[1693597634656,0.17275981,213.1,212.65,0.86408528]
[1693597636155,5.11263728,213.09,212.65,0.94087311]
[1693597636350,0.17275981,213.08,212.65,0.07678783]
[1693597637155,5.28539709,213.08,212.66,0.07678783]
[1693597637356,0.17275981,213.07,212.66,0.07678783]
[1693597638256,0.17275981,213.07,212.67,0.07678783]
[1693597638458,0.17275981,213.07,212.68,0.07678783]
[1693597638951,0.17275981,213.07,212.67,0.07678783]
[1693597639350,5.28539709,213.07,212.67,0.07678783]
[1693597639550,0.17275981,213.06,212.67,0.07678783]
[1693597639751,5.28539709,213.06,212.67,0.07678783]
[1693597639954,0.17275981,213.05,212.67,0.07678783]
[1693597646358,0.17275981,213.05,212.68,0.94059665]
[1693597646557,0.17275981,213.05,212.61,0.15357566]
[1693597646558,0.17275981,213.05,212.73,0.07678783]
[1693597646760,0.17275981,213.04,212.73,0.07678783]
[1693597646960,0.17275981,213.11,212.71,0.07678783]
[1693597647157,0.17275981,213.1,212.71,0.07678783]
[1693597647361,0.17275981,213.09,212.71,0.07678783]
[1693597647664,0.17275981,213.08,212.71,0.07678783]
[1693597647865,0.17275981,213.13,212.7,0.07678783]
[1693597648061,0.17275981,213.12,212.71,0.86376822]
[1693597648266,0.17275981,213.15,212.71,0.86376822]
[1693597648466,0.17275981,213.14,212.71,0.86376822]
[1693597648667,0.17275981,213.15,212.71,0.86376822]
[1693597649264,0.17275981,213.16,212.71,0.86376822]
[1693597649463,0.17275981,213.15,212.7,0.86376822]
[1693597649768,0.17275981,213.14,212.71,0.86377208]
[1693597649970,0.17275981,213.16,212.7,0.86377208]
[1693597650166,0.17275981,213.15,212.71,0.86377557]
[1693597650367,0.17275981,213.14,212.68,0.07678783]
[1693597650569,0.17275981,213.13,212.69,0.86377547]
[1693597650769,0.17275981,213.12,212.69,0.86377547]
[1693597650968,5.11263728,213.17,212.69,0.86377547]
[1693597650969,0.17275981,213.11,212.69,0.86377547]
[1693597651170,0.17275981,213.16,212.69,0.86377547]
[1693597651371,0.17275981,213.15,212.69,0.86377547]
[1693597651670,0.17275981,213.14,212.69,0.86377547]
[1693597651966,0.17275981,213.13,212.69,0.86377547]
[1693597652170,0.17275981,213.16,212.68,0.86377547]
[1693597652366,0.17275981,213.15,212.69,0.86377547]
[1693597652564,0.17275981,213.14,212.7,0.86377547]
[1693597652871,0.17275981,213.13,212.67,0.07678783]
[1693597653074,0.17275981,213.16,212.68,0.86377538]
[1693597653273,0.17275981,213.15,212.68,0.86377538]
[1693597653471,0.17275981,213.17,212.68,0.86377538]
[1693597653671,0.17275981,213.16,212.68,0.86377538]
[1693597653973,0.17275981,213.15,212.68,0.86377538]
[1693597654169,0.17275981,213.14,212.68,0.86377538]
[1693597654370,0.17275981,213.17,212.68,0.86377538]
[1693597654567,0.17275981,213.16,212.68,0.86377538]
[1693597654766,0.17275981,213.17,212.68,0.86377538]
[1693597654970,0.17275981,213.16,212.68,0.86377538]
[1693597655168,0.17275981,213.17,212.68,0.86377538]
[1693597655370,0.17275981,213.16,212.68,0.86377538]
[1693597655571,0.17275981,213.17,212.68,0.86377538]
[1693597655867,0.17275981,213.16,212.68,0.86377538]
[1693597656071,0.17275981,213.17,212.68,0.86377538]
[1693597656272,0.17275981,213.16,212.67,0.86377538]
[1693597656473,0.17275981,213.17,212.68,0.86377538]
[1693597656775,0.17275981,213.16,212.69,0.86377538]
[1693597656975,0.17275981,213.17,212.67,0.86377538]
[1693597657171,0.17275981,213.16,212.68,0.86377538]
[1693597657371,0.17275981,213.15,212.69,0.86377538]
[1693597657574,0.17275981,213.14,212.7,0.86377538]
[1693597657876,0.17275981,213.13,212.71,0.86377538]
[1693597658076,0.17275981,213.12,212.66,0.07678783]
[1693597658277,0.17275981,213.17,212.67,0.86377223]
[1693597658478,0.17275981,213.16,212.67,0.86377223]
[1693597658778,0.17275981,213.15,212.67,0.86377223]
[1693597658979,0.17275981,213.17,212.67,0.86377223]
[1693597659178,0.17275981,213.16,212.67,0.86377223]
[1693597659380,0.17275981,213.15,212.67,0.86377223]
[1693597659674,5.12007604,213.19,212.67,0.86377223]
[1693597659675,0.17275981,213.14,212.67,0.86377223]
[1693597659878,0.17275981,213.13,212.67,0.86377223]
[1693597660080,0.17275981,213.12,212.67,0.86377223]
[1693597660274,0.17275981,213.11,212.67,0.86377223]
[1693597660478,0.17275981,213.1,212.67,0.86377223]
[1693597660782,0.17275981,213.09,212.67,0.86377223]
[1693597660981,0.17275981,213.17,212.67,0.86377223]
[1693597661281,0.17275981,213.16,212.67,0.86377223]
[1693597661582,0.17275981,213.15,212.67,0.86377223]
[1693597661781,0.17275981,213.18,212.67,0.86377223]
[1693597661976,0.17275981,213.17,212.67,0.86377223]
[1693597662177,0.17275981,213.16,212.67,0.86377223]
[1693597662380,0.17275981,213.15,212.67,0.86377223]
[1693597662580,0.17275981,213.14,212.67,0.86377223]
[1693597662781,0.17275981,213.13,212.67,0.86377223]
[1693597662981,0.17275981,213.12,212.67,0.86377223]
[1693597663175,0.17275981,213.18,212.67,0.86377223]
[1693597663576,0.17275981,213.17,212.67,0.86377223]
[1693597663781,0.17275981,213.19,212.67,0.86377223]
[1693597663982,0.17275981,213.18,212.67,0.86377223]
[1693597664179,0.17275981,213.17,212.67,0.94051532]
[1693597664483,0.17275981,213.16,212.68,0.86377223]
[1693597664688,0.17275981,213.15,212.68,0.86377223]
[1693597664884,0.17275981,213.14,212.68,0.86377223]
[1693597665085,0.17275981,213.13,212.68,0.86377223]
[1693597665386,0.17275981,213.12,212.68,0.86377223]
[1693597665584,0.17275981,213.19,212.68,0.86377223]
[1693597665884,0.17275981,213.18,212.68,0.86377223]
[1693597666078,0.17275981,213.17,212.68,0.86377223]
[1693597666283,0.17275981,213.16,212.68,0.86377223]
[1693597666479,0.17275981,213.15,212.68,0.86377223]
[1693597666680,0.17275981,213.14,212.68,0.86377223]
[1693597666985,0.17275981,213.13,212.68,0.86377223]
[1693597667285,0.17275981,213.12,212.68,0.86377223]
[1693597667485,0.17275981,213.11,212.68,0.86377223]
[1693597667784,0.17275981,213.1,212.68,0.86377223]
[1693597667978,0.17275981,213.09,212.68,0.86377223]
[1693597668182,0.17275981,213.08,212.68,0.86377223]
[1693597668379,0.17275981,213.07,212.68,0.86377223]
[1693597668583,0.17275981,213.06,212.68,0.86377223]
[1693597668784,0.17275981,213.05,212.68,0.86377223]
[1693597669085,0.17275981,213.04,212.68,0.86377223]
[1693597669385,0.17275981,213.03,212.68,0.86377223]
[1693597669585,0.17275981,213.02,212.68,0.86377223]
[1693597669779,5.12007604,213.2,212.68,0.86377223]
[1693597669978,0.1727485,213.19,212.68,0.86377223]
[1693597671885,0.1727485,213.19,212.68,0.94051532]
[1693597672082,0.1727485,213.19,212.69,0.86377223]
[1693597674188,5.29282454,213.19,212.69,0.86377223]
[1693597674387,0.1727485,213.18,212.69,0.86377223]
[1693597675793,0.1727485,213.18,212.69,0.94051532]
[1693597675988,0.1727485,213.18,212.7,0.86377223]
[1693597676585,5.29282454,213.18,212.7,0.86377223]
[1693597676785,0.1727485,213.17,212.7,0.86377223]
[1693597677793,5.29282454,213.17,212.7,0.94051532]
[1693597678092,0.1727485,213.16,212.71,0.86377223]
[1693597678891,0.1727485,213.16,212.71,0.94051532]
[1693597679091,0.1727485,213.16,212.71,0.07674309]
[1693597679491,5.29282454,213.16,212.71,0.07674309]
[1693597679687,5.29282454,213.16,212.5,2.35037333]
[1693597679688,5.29282454,213.15,212.72,0.07674309]
[1693597679887,0.1727485,213.14,212.72,0.07674309]
[1693597680991,5.12007604,213.13,212.74,0.07674309]
[1693597681193,0.1727485,213.12,212.74,0.07674309]
[1693597686898,0.1727485,213.12,212.73,0.07674309]
[1693597687897,5.29282454,213.12,212.73,0.07674309]
[1693597688097,0.1727485,213.11,212.73,0.07674309]
[1693597692897,0.1727485,213.11,212.72,0.07674309]
[1693597694598,5.29282454,213.11,212.72,0.07674309]
[1693597694796,0.1727485,213.1,212.72,0.07674309]
[1693597698903,0.1727485,213.1,212.73,0.07674309]
[1693597699106,0.1727485,213.09,212.73,0.07674309]
[1693597699305,0.1727485,213.11,212.73,0.07674309]
[1693597699605,0.1727485,213.1,212.73,0.07674309]
[1693597699904,0.1727485,213.09,212.73,0.07674309]
[1693597700106,0.1727485,213.08,212.73,0.07674309]
[1693597700307,0.1727485,213.07,212.73,0.07674309]
[1693597700507,0.1727485,213.06,212.73,0.07674309]
[1693597700708,0.1727485,213.11,212.73,0.07674309]
[1693597700908,0.1727485,213.1,212.73,0.07674309]
[1693597701109,0.1727485,213.11,212.73,0.07674309]
[1693597701310,0.1727485,213.1,212.73,0.07674309]
[1693597701509,0.1727485,213.11,212.73,0.07674309]
[1693597701711,5.12007604,213.12,212.73,0.07674309]
[1693597701712,0.1727485,213.1,212.73,0.07674309]
[1693597701911,0.1727485,213.09,212.74,0.07674309]
[1693597702110,0.1727485,213.08,212.74,0.07674309]
[1693597702311,0.1727485,213.07,212.74,0.07674309]
[1693597702612,0.1727485,213.06,212.74,0.07674309]
[1693597702813,0.1727485,213.05,212.74,0.07674309]
[1693597703005,0.1727485,213.12,212.74,0.07674309]
[1693597703206,0.1727485,213.11,212.74,0.07674309]
[1693597703408,0.1727485,213.1,212.74,0.07674309]
[1693597703606,0.1727485,213.09,212.74,0.07674309]
[1693597703808,0.1727485,213.08,212.74,0.07674309]
[1693597704010,0.1727485,213.13,212.74,0.07674309]
[1693597704210,0.1727485,213.12,212.74,0.07674309]
[1693597704511,0.1727485,213.11,212.74,0.07674309]
[1693597704711,0.1727485,213.13,212.74,0.07674309]
[1693597704912,0.1727485,213.12,212.73,0.07674309]
[1693597705107,0.1727485,213.13,212.73,0.07674309]
[1693597705313,0.1727485,213.12,212.73,0.07674309]
[1693597705508,0.1727485,213.13,212.73,0.07674309]
[1693597705716,0.1727485,213.12,212.73,0.07674309]
[1693597706015,0.1727485,213.11,212.73,0.07674309]
[1693597706214,0.1727485,213.13,212.73,0.07674309]
[1693597706416,0.1727485,213.12,212.73,0.07674309]
[1693597706610,0.1727485,213.13,212.73,0.07674309]
[1693597706816,0.1727485,213.12,212.73,0.07674309]
[1693597707116,0.1727485,213.11,212.73,0.07674309]
[1693597707309,0.1727485,213.1,212.73,0.07674309]
[1693597707513,0.1727485,213.09,212.73,0.07674309]
[1693597707711,0.1727485,213.08,212.74,0.8634762]
[1693597707917,5.12007604,213.2,212.76,0.07674309]
[1693597708215,0.17269034,213.19,212.77,0.8634762]
[1693597710117,0.17269034,213.19,212.75,0.07674309]
[1693597710312,0.17269034,213.19,212.76,0.86345932]
[1693597710920,0.17269034,213.18,212.77,0.86345932]
[1693597711217,0.17269034,213.17,212.74,0.07674309]
[1693597711417,0.17269034,213.16,212.75,0.86345678]
[1693597711617,0.17269034,213.21,212.75,0.86345678]
[1693597711818,0.17269034,213.2,212.75,0.86345678]
[1693597712018,0.17269034,213.19,212.75,0.86345678]
[1693597712319,0.17269034,213.18,212.75,0.86345678]
[1693597712518,0.17269034,213.17,212.75,0.86345678]
[1693597712721,0.17269034,213.22,212.75,0.86345678]
[1693597713023,0.17269034,213.21,212.76,0.86345678]
[1693597713212,0.17269034,213.2,212.77,0.86345678]
[1693597713412,0.17269034,213.19,212.78,0.86345678]
[1693597713616,0.17269034,213.18,212.74,0.07674309]
[1693597713820,0.17269034,213.17,212.75,0.8634588]
[1693597714013,0.17269034,213.16,212.76,0.8634588]
[1693597714218,0.17269034,213.15,212.77,0.8634588]
[1693597714413,0.17269034,213.23,212.75,0.8634588]
[1693597714618,0.17269034,213.22,212.76,0.8634588]
[1693597714816,0.17269034,213.21,212.77,0.8634588]
[1693597715021,0.17269034,213.2,212.78,0.8634588]
[1693597715218,0.17269034,213.19,212.73,0.07674309]
[1693597715423,0.17269034,213.18,212.74,0.86343517]
[1693597715625,0.17269034,213.17,212.74,0.86343517]
[1693597715826,0.17269034,213.16,212.74,0.86343517]
[1693597716023,0.17269034,213.25,212.74,0.86343517]
[1693597716227,0.17269034,213.24,212.74,0.94017826]
[1693597716529,0.17269034,213.23,212.75,0.86343517]
[1693597716728,0.17269034,213.22,212.75,0.86343517]
[1693597716922,0.17269034,213.21,212.76,0.86343517]
[1693597717122,0.17269034,213.2,212.77,0.86343517]
[1693597717324,0.17269034,213.26,212.74,0.86343517]
[1693597717526,0.17269034,213.25,212.75,0.86343517]
[1693597717725,5.12007604,213.27,212.75,0.86343517]
[1693597717726,0.17269034,213.24,212.75,0.86343517]
[1693597717929,0.17269034,213.23,212.75,0.86343517]
[1693597718130,5.12007604,213.28,212.75,0.86343517]
[1693597718131,0.17269034,213.27,212.75,0.86343517]
[1693597718428,0.17269034,213.26,212.75,0.86343517]
[1693597718629,0.17269034,213.25,212.75,0.86343517]
[1693597718822,0.17269034,213.24,212.75,0.94017826]
[1693597719027,0.17269034,213.23,212.76,0.86343517]
[1693597719329,0.17269034,213.22,212.76,0.86343517]
[1693597719529,0.17269034,213.28,212.76,0.86343517]
[1693597719733,0.17269034,213.27,212.76,0.86343517]
[1693597719930,0.17269034,213.26,212.76,0.86343517]
[1693597720128,0.17269034,213.25,212.76,0.86343517]
[1693597720323,0.17269034,213.24,212.76,0.86343517]
[1693597720530,5.12007604,213.3,212.77,0.86343517]
[1693597720531,0.17269034,213.23,212.77,0.86343517]
[1693597720830,0.17269034,213.22,212.78,0.86343517]
[1693597721130,0.17269034,213.21,212.79,0.86343517]
[1693597721330,0.17269034,213.2,212.8,0.86343517]
[1693597721530,0.17269034,213.19,212.74,0.07674309]
[1693597721727,0.17269034,213.18,212.75,0.86336297]
[1693597721924,0.17269034,213.17,212.75,0.86336297]
[1693597722130,0.17269034,213.16,212.75,0.86336297]
[1693597722331,0.17269034,213.15,212.75,0.86336297]
[1693597722531,0.17269034,213.14,212.75,0.86336297]
[1693597722730,0.17269034,213.13,212.75,0.86336297]
[1693597722930,0.17269034,213.12,212.75,0.86336297]
[1693597723133,5.12007604,213.32,212.75,0.86336297]
[1693597723430,0.17267349,213.31,212.75,0.86336297]
[1693597725132,0.17267349,213.31,212.75,0.94010606]
[1693597725330,0.17267349,213.3,212.76,0.86336297]
[1693597725529,0.17267349,213.32,212.76,0.86336297]
[1693597725734,0.17267349,213.31,212.76,0.94010606]
[1693597726031,0.17267349,213.3,212.77,0.86336297]
[1693597726234,0.17267349,213.29,212.77,0.86336297]
[1693597726428,0.17267349,213.28,212.77,0.86336297]
[1693597726629,0.17267349,213.27,212.77,0.86336297]
[1693597726833,0.17267349,213.26,212.77,0.86336297]
[1693597727134,0.17267349,213.25,212.77,0.86336297]
[1693597727334,0.17267349,213.24,212.77,0.86336297]
[1693597727534,0.17267349,213.23,212.77,0.86336297]
[1693597727734,0.17267349,213.22,212.77,0.86336297]
[1693597727937,0.17267349,213.21,212.77,0.86336297]
[1693597728234,0.17267349,213.2,212.77,0.86336297]
[1693597728431,0.17267349,213.19,212.77,0.86336297]
[1693597728636,0.17267349,213.18,212.77,0.86336297]
[1693597728837,5.12007604,213.41,212.81,0.07674309]
[1693597729038,0.17260839,213.4,212.82,0.94010606]
[1693597729237,0.17260839,213.41,212.83,0.86336297]
[1693597729440,0.17260839,213.4,212.83,0.86336297]
[1693597729640,0.17260839,213.39,212.83,0.86336297]
[1693597729833,0.17260839,213.41,212.83,0.86336297]
[1693597730034,0.17260839,213.4,212.83,0.86336297]
[1693597730232,0.17260839,213.39,212.83,0.86336297]
[1693597730431,0.17260839,213.38,212.83,0.86336297]
[1693597730633,0.17260839,213.37,212.83,0.86336297]
[1693597730938,0.17260839,213.36,212.83,0.86336297]
[1693597731140,0.17260839,213.35,212.83,0.86336297]
[1693597731338,0.17260839,213.34,212.83,0.86336297]
[1693597731539,0.17260839,213.33,212.83,0.86336297]
[1693597731739,0.17260839,213.43,212.83,0.86336297]
[1693597731942,0.17260839,213.42,212.83,0.86336297]
[1693597732136,0.17260839,213.43,212.83,0.86336297]
[1693597732338,0.17260839,213.42,212.83,0.86336297]
[1693597732539,0.17260839,213.41,212.83,0.86336297]
[1693597732735,0.17260839,213.44,212.83,0.86336297]
[1693597732935,0.17260839,213.43,212.83,0.86336297]
[1693597733139,7.16810646,213.49,212.83,0.94010606]
[1693597733140,0.17260839,213.42,212.83,0.94010606]
[1693597733340,0.17260839,213.41,212.84,0.86336297]
[1693597733537,0.17260839,213.4,212.84,0.86336297]
[1693597733741,0.17260839,213.39,212.84,0.86336297]
[1693597733938,0.17260839,213.38,212.84,0.86336297]
[1693597734140,0.17260839,213.37,212.84,0.86336297]
[1693597734336,0.17260839,213.47,212.84,0.86336297]
[1693597734637,0.17260839,213.46,212.84,0.86336297]
[1693597734839,0.17260839,213.45,212.84,0.94010606]